fUST/lending_fUST_20250622
["ID","MTS","AMOUNT","RATE_DAILY","PERIOD"]
[366919501,1750572632871,-469.58064687,0.0002335,2]
[366919502,1750572632880,-460.0,0.0002335,2]
[366919503,1750572632889,-460.0,0.0002335,2]
[366919504,1750572632898,-300.18250234,0.00023352,2]
[366919505,1750572632911,-119.81749766,0.00023352,2]
[366919506,1750572632921,-460.0,0.00023374,2]
[366919507,1750572632930,-460.0,0.00023374,2]
[366919508,1750572632940,-236.61434184,0.00023417,9]
[366919509,1750572632949,-181.48226489,0.00023432,2]
[366919510,1750572632960,-278.51773511,0.00023432,2]
[366919511,1750572632970,-160.41359145,0.00023486,2]
[366919512,1750572632980,-460.0,0.00023487,2]
[366919513,1750572632990,-460.0,0.00023487,2]
[366919514,1750572633000,-33.03123944,0.00023487,2]
[366919515,1750572633012,-426.96876056,0.00023487,2]
[366919516,1750572633021,-282.62312645,0.00023487,2]
[366919517,1750572633034,-220.54865621,0.00023487,2]
[366919518,1750572633044,-232.50012529,0.00023488,3]
[366919519,1750572633057,-1793.70987471,0.00023488,3]
[366919520,1750572633067,-236.61434184,0.00023521,9]
[366919521,1750572633078,-979.83692665,0.00023526,2]
[366919522,1750572633088,-500.0,0.00023555,9]
[366919523,1750572633097,-200.52860283,0.00023555,9]
[366919524,1750572633119,-500.0,0.00023582,9]
[366919525,1750572633130,-214.3892364,0.00023589,2]
[366919526,1750572633145,-87.39929568,0.00023589,2]
[366919527,1750572633156,-500.0,0.0002361,9]
[366919528,1750572633166,-236.61434184,0.00023624,9]
[366919529,1750572633177,-60.85380545,0.00023627,2]
[366919559,1750572638399,-287.70733921,0.00021917,2]
[366919561,1750572638412,-172.29266079,0.00021917,2]
[366919563,1750572638423,-90.14619455,0.00023627,2]
[366919565,1750572638433,-500.0,0.00023637,9]
[366919567,1750572638443,-40.82765079,0.00023654,2]
[366919570,1750572638455,-110.17234921,0.00023654,2]
[366919572,1750572638465,-209.37451596,0.00023665,9]
[366919574,1750572638480,-290.62548404,0.00023665,9]
[366919576,1750572638490,-248.78848359,0.00023682,2]
[366919578,1750572638500,-460.0,0.00023688,2]
[366919580,1750572638512,-460.0,0.00023688,2]
[366919582,1750572638522,-460.0,0.00023688,2]
[366919584,1750572638531,-460.0,0.00023688,2]
[366919586,1750572638541,-12000.0,0.00023689,3]
[366919588,1750572638551,-160.0,0.00023689,3]
[366919590,1750572638561,-846.39664074,0.00023689,3]
[366919592,1750572638570,-9525.37024235,0.00023689,3]
[366919594,1750572638580,-230.14598372,0.00023689,3]
[366919596,1750572638591,-213.59462818,0.00023689,3]
[366919598,1750572638602,-160.0,0.00023689,3]
[366919600,1750572638611,-425.01221603,0.00023689,3]
[366919602,1750572638621,-500.0,0.00023692,9]
[366919604,1750572638630,-460.0,0.00023693,2]
[366919606,1750572638640,-460.0,0.00023693,2]
[366919608,1750572638649,-1040.01,0.000237,7]
[366919610,1750572638659,-500.0,0.00023719,9]
[366919612,1750572638668,-236.61434184,0.00023728,9]
[366919614,1750572638679,-500.0,0.00023747,9]
[366919616,1750572638688,-1575.45,0.00023747,2]
[366919618,1750572638697,-190.30957851,0.00023774,9]
[366919620,1750572638707,-236.61434184,0.00023831,10]
[366919622,1750572638717,-301.78853208,0.00023842,2]
[366919624,1750572638726,-460.0,0.00023858,2]
[366919626,1750572638736,-460.0,0.00023858,2]
[366919628,1750572638746,-453.31,0.00023871,3]
[366919630,1750572638755,-627.79,0.00023871,3]
[366919632,1750572638765,-221.96,0.00023871,10]
[366919634,1750572638775,-192.60197866,0.00023873,2]
[366919636,1750572638785,-151.09,0.00023879,3]
[366919638,1750572638795,-184.97,0.00023879,10]
[366919640,1750572638806,-460.0,0.0002388,2]
[366919642,1750572638815,-500.0,0.0002388,2]
[366919644,1750572638826,-500.0,0.0002388,2]
[366919646,1750572638836,-540.66238865,0.0002388,2]
[366919648,1750572638845,-500.0,0.0002388,2]
[366919651,1750572638855,-344.10638263,0.0002388,2]
[366919653,1750572638868,-500.0,0.0002388,2]
[366919655,1750572638878,-500.0,0.0002388,2]
[366919673,1750572639042,-500.0,0.0002388,2]
[366919675,1750572639052,-500.0,0.0002388,2]
[366919677,1750572639062,-500.0,0.0002388,2]
[366919679,1750572639072,-500.0,0.0002388,2]
[366919681,1750572639082,-500.0,0.0002388,2]
[366919683,1750572639091,-500.0,0.0002388,2]
[366919685,1750572639100,-500.0,0.0002388,2]
[366919688,1750572639110,-500.0,0.0002388,2]
[366919690,1750572639120,-530.89539029,0.0002388,2]
[366919691,1750572639129,-500.0,0.0002388,2]
[366919693,1750572639147,-500.0,0.0002388,2]
[366919695,1750572639159,-500.0,0.0002388,2]
[366919697,1750572639169,-500.0,0.0002388,2]
[366919699,1750572639179,-500.0,0.0002388,2]
[366919701,1750572639188,-300.0,0.0002388,2]
[366919703,1750572639197,-500.0,0.0002388,2]
[366919705,1750572639207,-460.0,0.00023881,2]
[366919707,1750572639217,-460.0,0.00023881,2]
[366919710,1750572639228,-500.0,0.00023881,2]
[366919712,1750572639237,-460.0,0.00023881,2]
[366919714,1750572639248,-549.15318032,0.00023881,2]
[366919716,1750572639257,-460.0,0.00023881,2]
[366919718,1750572639267,-460.0,0.00023881,2]
[366919720,1750572639280,-207.4,0.00023881,2]
[366919722,1750572639289,-1664.94097883,0.00023881,2]
[366919724,1750572639299,-25000.0,0.00023881,2]
[366919726,1750572639309,-14368.79370466,0.00023881,2]
[366919728,1750572639318,-460.0,0.00023888,2]
[366919730,1750572639328,-460.0,0.00023888,2]
[366919732,1750572639338,-13000.0,0.00023889,3]
[366919734,1750572639348,-2161.0,0.00023915,2]
[366919736,1750572639358,-654.0,0.00023915,2]
[366919738,1750572639368,-413.228,0.00023915,2]
[366919741,1750572639378,-236.61434184,0.00023934,10]
[366919742,1750572639388,-358.09484016,0.00024,3]
[366919745,1750572639402,-165.93114571,0.00024,3]
[366919747,1750572639412,-155.5,0.00024004,6]
[366919749,1750572639423,-213.59462818,0.00024038,2]
[366919751,1750572639433,-846.39664074,0.00024038,2]
[366919753,1750572639443,-236.61434184,0.00024038,10]
[366919755,1750572639453,-460.0,0.00024061,2]
[366919757,1750572639463,-460.0,0.00024061,2]
[366919759,1750572639472,-15000.0,0.00024062,4]
[366919761,1750572639482,-6452.0,0.00024081,5]
[366919763,1750572639491,-301.78853208,0.00024096,2]
[366919765,1750572639501,-155.5,0.00024136,6]
[366919767,1750572639515,-236.61434184,0.00024141,10]
[366919769,1750572639523,-160.0,0.00024143,2]
[366919771,1750572639534,-1155.48,0.00024223,2]
[366919773,1750572639544,-478.0,0.00024235,2]
[366919775,1750572639555,-236.61434184,0.00024245,10]
[366919777,1750572639564,-478.0,0.00024267,2]
[366919779,1750572639574,-155.5,0.00024268,6]
[366919781,1750572639586,-460.0,0.00024294,2]
[366919783,1750572639596,-460.0,0.00024294,2]
[366919785,1750572639605,-1575.45,0.00024295,2]
[366919787,1750572639615,-151.0,0.000243,10]
[366919789,1750572639625,-236.61434184,0.00024348,11]
[366919791,1750572639635,-301.78853208,0.00024349,2]
[366919793,1750572639645,-478.0,0.0002435,2]
[366919795,1750572639654,-460.0,0.00024398,2]
[366919797,1750572639669,-151.0,0.000244,9]
[366919799,1750572639679,-151.0,0.000244,5]
[366919801,1750572639689,-6341.61339412,0.000244,2]
[366919803,1750572639699,-164.71109672,0.000244,4]
[366919805,1750572639708,-164.71109672,0.000244,4]
[366919807,1750572639718,-164.71109672,0.000244,4]
[366919809,1750572639727,-164.71109672,0.000244,4]
[366919811,1750572639738,-164.71,0.000244,4]
[366919813,1750572639748,-160.13578848,0.000244,4]
[366919815,1750572639757,-160.13578848,0.000244,4]
[366919818,1750572639767,-160.13578848,0.000244,4]
[366919820,1750572639780,-160.13578848,0.000244,4]
[366919822,1750572639790,-160.13578848,0.000244,4]
[366919824,1750572639800,-160.13578848,0.000244,4]
[366919826,1750572639810,-160.13578848,0.000244,4]
[366919828,1750572639820,-160.13578848,0.000244,4]
[366919830,1750572639829,-160.13578848,0.000244,4]
[366919832,1750572639838,-160.13578848,0.000244,4]
[366919834,1750572639848,-160.13578848,0.000244,4]
[366919836,1750572639858,-160.13,0.000244,4]
[366919838,1750572639868,-162.91713749,0.000244,4]
[366919840,1750572639878,-162.91713749,0.000244,4]
[366919842,1750572639887,-162.91713749,0.000244,4]
[366919844,1750572639897,-162.91,0.000244,4]
[366919846,1750572639906,-152.05599499,0.000244,4]
[366919848,1750572639916,-152.05599499,0.000244,4]
[366919850,1750572639925,-152.05599499,0.000244,4]
[366919852,1750572639935,-152.05599499,0.000244,4]
[366919854,1750572639945,-152.05599499,0.000244,4]
[366919856,1750572639955,-152.05599499,0.000244,4]
[366919858,1750572639966,-152.05599499,0.000244,4]
[366919860,1750572639976,-152.05599499,0.000244,4]
[366919863,1750572639986,-152.05599499,0.000244,4]
[366919865,1750572639995,-152.05,0.000244,4]
[366919867,1750572640005,-167.67357153,0.000244,2]
[366919869,1750572640015,-155.5,0.00024401,7]
[366919871,1750572640025,-317.0,0.00024423,2]
[366919873,1750572640035,-500.0,0.00024429,2]
[366919875,1750572640044,-460.0,0.00024451,2]
[366919877,1750572640054,-236.61434184,0.00024452,11]
[366919881,1750572640063,-508.41042037,0.00024473,2]
[366919883,1750572640081,-212.79722987,0.00024473,2]
[366919886,1750572640094,-501.37766157,0.00024473,2]
[366919888,1750572640108,-500.0,0.00024473,2]
[366919891,1750572640121,-502.2001988,0.00024473,2]
[366919893,1750572640132,-500.0,0.00024473,2]
[366919895,1750572640143,-500.0,0.00024473,2]
[366919897,1750572640158,-500.0,0.00024473,2]
[366919900,1750572640171,-500.0,0.00024473,2]
[366919902,1750572640184,-510.90691557,0.00024473,2]
[366919904,1750572640197,-505.23839989,0.00024473,2]
[366919907,1750572640210,-500.0,0.00024473,2]
[366919909,1750572640224,-515.88381628,0.00024473,2]
[366919911,1750572640236,-815.34,0.0002449,3]
[366919914,1750572640250,-407.67,0.0002449,3]
[366919916,1750572640263,-203.84,0.0002449,3]
[366919919,1750572640276,-611.52,0.0002449,3]
[366919921,1750572640288,-460.0,0.00024499,2]
[366919923,1750572640299,-460.0,0.00024499,2]
[366919925,1750572640311,-460.0,0.00024499,2]
[366919928,1750572640323,-516.45632914,0.00024499,2]
[366919930,1750572640335,-155.64701639,0.00024499,2]
[366919932,1750572640347,-460.0,0.00024499,2]
[366919935,1750572640360,-460.0,0.00024499,2]
[366919937,1750572640372,-460.0,0.00024499,2]
[366919939,1750572640384,-460.0,0.00024499,2]
[366919941,1750572640396,-180.78864556,0.00024499,2]
[366919943,1750572640407,-17886.90003037,0.000245,2]
[366919946,1750572640419,-19623.76684481,0.000245,2]
[366919948,1750572640431,-1374234.47414859,0.000245,2]
[366919951,1750572640446,-4879.74501585,0.000245,2]
[366920115,1750572642311,-4605.25171199,0.000245,2]
[366920124,1750572642394,-1504.2,0.000245,2]
[366920126,1750572642406,-4759.2273077,0.000245,2]
[366920209,1750572643102,-2139.33694571,0.000245,2]
[366920224,1750572643246,-460.0,0.00021917,2]
[366920226,1750572643258,-460.0,0.00022772,2]
[366920228,1750572643268,-493.91625645,0.00022998,2]
[366920230,1750572643277,-6360.90948298,0.000245,2]
[366920253,1750572643505,-460.0,0.00021917,2]
[366920255,1750572643521,-460.0,0.0002335,2]
[366920256,1750572643532,-251.39957043,0.00023688,2]
[366920539,1750572646390,-275.06,0.00021917,2]
[366920541,1750572646400,-96.42318948,0.00021917,2]
[366920543,1750572646412,-363.57681052,0.00021917,2]
[366920545,1750572646421,-208.60042957,0.00023688,2]
[366920547,1750572646431,-460.0,0.00023688,2]
[366920549,1750572646440,-460.0,0.00023881,2]
[366920551,1750572646450,-460.0,0.00023881,2]
[366920553,1750572646459,-460.0,0.00023888,2]
[366920555,1750572646469,-460.0,0.00024061,2]
[366920557,1750572646479,-460.0,0.00024451,2]
[366920559,1750572646488,-460.0,0.00024499,2]
[366920561,1750572646498,-460.0,0.00024499,2]
[366920563,1750572646507,-460.0,0.00024499,2]
[366920565,1750572646520,-460.0,0.00024499,2]
[366920567,1750572646531,-460.0,0.00024499,2]
[366920569,1750572646541,-460.0,0.00024499,2]
[366920571,1750572646550,-328.85873737,0.00024499,2]
[366920573,1750572646562,-13408.6866777,0.000245,2]
[366920578,1750572646606,-2979.32591056,0.000245,2]
[366920580,1750572646619,-12644.42247622,0.000245,2]
[366921690,1750573300387,181.678627,0.00013699,2]
[366921697,1750573465394,600.0,0.00024658,120]
[366921698,1750573534141,-1515.29555765,0.00019986,2]
[366921699,1750573635116,-411.30441248,0.00019786,2]
[366921700,1750573641076,-2379.87257162,0.00019786,2]
[366921701,1750573652124,-203.78859074,0.00019786,2]
[366921702,1750573670855,1013.55141294,0.00018,2]
[366921707,1750573745094,-2005.03442516,0.00019786,2]
[366921708,1750573745115,-181.678627,0.00020187,2]
[366921709,1750573745136,-290.747978,0.00020821,2]
[366921710,1750573745158,-284.929,0.00020875,2]
[366921711,1750573745178,-160.808104,0.00020999,2]
[366921712,1750573745204,-1200.0,0.00021457,2]
[366921713,1750573745226,-300.0,0.00021458,2]
[366921714,1750573745247,-737.58087567,0.0002146,2]
[366921729,1750573751127,-977.76903532,0.0002146,2]
[366921732,1750573754113,-5641.93135331,0.0002146,2]
[366921733,1750573754293,160.0,0.00021689,2]
[366921734,1750573754716,704.39607906,0.00021245,2]
[366921735,1750573757149,-4295.60392094,0.00021245,2]
[366921736,1750573757179,-203.78197738,0.000219,6]
[366921737,1750573757199,-758.35118714,0.00021927,2]
[366921738,1750573757228,-203.78197735,0.0002206,6]
[366921739,1750573757255,-203.78197735,0.0002222,6]
[366921740,1750573757276,-500.0,0.00022248,2]
[366921741,1750573757297,-518.3121928,0.00022248,2]
[366921742,1750573757316,-17653.75349717,0.00022249,2]
[366921743,1750573766073,-980.0,0.00022249,2]
[366921747,1750573774218,-5000.0,0.00022027,2]
[366921748,1750573774240,-9999.69386243,0.00022249,2]
[366921749,1750573774262,-248.79493437,0.0002228,2]
[366921750,1750573774284,-248.79493434,0.0002272,2]
[366921752,1750573785655,626.82855037,0.00022719,2]
[366921771,1750573832539,-4373.17144963,0.00022719,2]
[366921772,1750573832549,-213.59462818,0.00022948,2]
[366921773,1750573832558,-846.39664074,0.00022948,2]
[366921774,1750573832567,-300.0,0.00022953,2]
[366921775,1750573832578,-1200.0,0.00022953,2]
[366921776,1750573832588,-230.14598372,0.00022954,2]
[366921777,1750573832598,-160.0,0.00022954,2]
[366921778,1750573832607,-836.56272071,0.00022954,2]
[366921779,1750573832617,-160.0,0.00022954,2]
[366921780,1750573832627,-249.13450276,0.00023,2]
[366921781,1750573832636,-8820.29804545,0.00023,2]
[366921782,1750573832646,-342.62493999,0.00023288,2]
[366921783,1750573832656,-420.0,0.00023331,2]
[366921784,1750573832666,-168.0,0.00023342,2]
[366921785,1750573832676,-704.0,0.00023734,2]
[366921786,1750573832685,-16635.94540094,0.000238,5]
[366921787,1750573832695,-365.8215413,0.0002383,2]
[366921788,1750573832704,-365.8215413,0.0002383,2]
[366921789,1750573832714,-365.8215413,0.0002383,2]
[366921790,1750573832724,-365.8215413,0.0002383,2]
[366921791,1750573832733,-365.8215413,0.0002383,2]
[366921793,1750573832743,-729.7309633,0.0002383,2]
[366921795,1750573832752,-371.89916732,0.0002388,2]
[366921797,1750573832761,-207.4,0.00023881,2]
[366921799,1750573832771,-1286.293216,0.00023881,2]
[366921800,1750573832780,-203.78197735,0.000239,10]
[366921801,1750573832789,-7644.21969085,0.0002399,2]
[366921802,1750573832799,-203.78197735,0.00023991,10]
[366921803,1750573832809,-524.02598587,0.00024,3]
[366921804,1750573832818,-524.02598587,0.00024,3]
[366921805,1750573832827,-168.0,0.00024055,2]
[366921806,1750573832837,-203.78197735,0.00024082,10]
[366921807,1750573832846,-576.78136993,0.00024088,5]
[366921808,1750573832856,-349.12045422,0.00024134,2]
[366921809,1750573832870,-203.78197735,0.00024173,10]
[366921810,1750573832880,-168.0,0.00024215,2]
[366921811,1750573832889,-1152.46,0.0002424,2]
[366921812,1750573832899,-151.0,0.0002424,2]
[366921813,1750573832910,-151.844002,0.0002424,2]
[366921814,1750573832921,-151.60138695,0.0002424,2]
[366921815,1750573832930,-198.27763819,0.0002424,2]
[366921816,1750573832940,-201.49781124,0.00024243,2]
[366921817,1750573832950,-151.0,0.00024243,2]
[366921818,1750573832959,-500.0,0.00024243,2]
[366921819,1750573832969,-500.0,0.00024243,2]
[366921820,1750573832979,-152.09472765,0.00024243,2]
[366921821,1750573832988,-151.53397057,0.00024243,2]
[366921822,1750573832997,-151.0,0.00024243,2]
[366921823,1750573833007,-151.29765514,0.00024243,2]
[366921824,1750573833017,-704.0,0.00024243,2]
[366921825,1750573833028,-203.78197735,0.00024264,10]
[366921826,1750573833038,-248.21903265,0.00024267,2]
[366921827,1750573833048,-151.0,0.0002427,2]
[366921828,1750573833058,-151.0,0.0002427,2]
[366921829,1750573833067,-199.05228334,0.00024298,2]
[366921830,1750573833077,-199.09323048,0.00024298,2]
[366921831,1750573833087,-2490.0,0.00024342,2]
[366921832,1750573833096,-203.78197735,0.00024355,11]
[366921833,1750573833106,-1388.776845,0.00024401,4]
[366921834,1750573833116,-203.78197735,0.00024445,11]
[366921835,1750573833125,-2490.0,0.00024453,2]
[366921836,1750573833136,-506.0514979,0.00024473,2]
[366921837,1750573833146,-248.79493434,0.00024479,2]
[366921838,1750573833156,-627.62,0.0002449,3]
[366921839,1750573833166,-313.81,0.0002449,3]
[366921840,1750573833175,-156.91,0.0002449,3]
[366921841,1750573833185,-470.73,0.0002449,3]
[366921842,1750573833194,-154.14,0.0002449,10]
[366921843,1750573833203,-724.46835926,0.0002449,10]
[366921844,1750573833217,-46.24164074,0.0002449,10]
[366921845,1750573833226,-247.6624715,0.00024499,2]
[366921846,1750573833242,-252.3375285,0.00024499,2]
[366921847,1750573833252,-378.46367205,0.00024499,2]
[366921848,1750573833262,-500.0,0.00024499,2]
[366921849,1750573833271,-500.0,0.00024499,2]
[366921850,1750573833281,-500.0,0.00024499,2]
[366921851,1750573833291,-500.0,0.00024499,2]
[366921852,1750573833301,-500.0,0.00024499,2]
[366921853,1750573833310,-177.45489123,0.00024499,2]
[366921854,1750573833320,-500.0,0.00024499,2]
[366921855,1750573833330,-500.0,0.00024499,2]
[366921856,1750573833340,-500.0,0.00024499,2]
[366921857,1750573833350,-500.0,0.00024499,2]
[366921858,1750573833360,-457.54670181,0.00024499,2]
[366921859,1750573833370,-500.0,0.00024499,2]
[366921860,1750573833380,-500.0,0.00024499,2]
[366921861,1750573833391,-500.0,0.00024499,2]
[366921862,1750573833401,-500.0,0.00024499,2]
[366921863,1750573833411,-500.0,0.00024499,2]
[366921864,1750573833422,-420.28269126,0.00024499,2]
[366921865,1750573833431,-500.0,0.00024499,2]
[366921866,1750573833442,-546.92009004,0.00024499,2]
[366921867,1750573833451,-160.0,0.00024499,2]
[366921868,1750573833462,-25709.38091442,0.000245,2]
[366921869,1750573833474,-9724.8851068,0.000245,2]
[366921905,1750573838660,-962.04987584,0.000245,2]
[366922105,1750573840862,-4217.39455416,0.000245,2]
[366922108,1750573840878,-896.19562494,0.000245,2]
[366922110,1750573840889,-4324.26623561,0.000245,2]
[366922397,1750573843850,-920.0,0.000245,2]
[366923743,1750574013191,2240.0,0.0002449,120]
[366923744,1750574013676,2240.0,0.0002448,120]
[366923745,1750574014236,2240.0,0.0002447,120]
[366923749,1750574302565,171.771978,0.00013699,2]
[366923750,1750574303387,-171.771978,0.00020187,2]
[366923752,1750574373375,1568.0,0.0002449,120]
[366923753,1750574373852,1568.0,0.0002448,120]
[366923754,1750574374308,1568.0,0.0002447,120]
[366923755,1750574433200,508.0,0.00023,30]
[366923758,1750574733514,1097.0,0.0002449,120]
[366923759,1750574734086,1097.0,0.0002448,120]
[366923760,1750574734524,1097.0,0.0002447,120]
[366923761,1750574749588,1002.0,0.00024657,120]
[366923762,1750574759150,-2631.51170693,0.00022176,2]
[366923763,1750574833181,-547.82602877,0.00021954,2]
[366923764,1750574946172,-3017.93526854,0.00021954,2]
[366923765,1750574947086,-964.60812389,0.00021954,2]
[366923766,1750574947247,-469.6305788,0.00021954,2]
[366923767,1750574947269,-150.0,0.0002239,2]
[366923768,1750574953871,1873.46100545,0.00022671,2]
[366923830,1750575037991,-292.39018966,0.00022671,2]
[366923876,1750575043107,-152.04531414,0.00022671,2]
[366923880,1750575093111,768.0,0.0002449,120]
[366923881,1750575093580,768.0,0.0002448,120]
[366923882,1750575094040,768.0,0.0002447,120]
[366923884,1750575223510,582.0,0.00024658,120]
[366923886,1750575327914,424.65,0.0002465,120]
[366923888,1750575414204,184.480317,0.00013699,2]
[366923889,1750575414794,-184.480317,0.00020187,2]
[366923890,1750575453191,538.0,0.0002449,120]
[366923891,1750575453642,538.0,0.0002448,120]
[366923892,1750575454086,538.0,0.0002447,120]
[366923894,1750575570011,351.0,0.00024649,120]
[366923895,1750575813538,376.0,0.0002449,120]
[366923896,1750575814092,376.0,0.0002448,120]
[366923897,1750575814461,376.0,0.0002447,120]
[366923910,1750576015333,300.0,0.00024649,120]
[366923912,1750576039145,-906.65573591,0.00020961,2]
[366923913,1750576044106,-164.50594337,0.00020961,2]
[366923914,1750576045081,-168.00604167,0.00020961,2]
[366923917,1750576146155,-189.55021258,0.00021173,2]
[366923918,1750576146179,-227.285091,0.00021499,2]
[366923919,1750576146204,-277.77750383,0.00021651,2]
[366923920,1750576146228,-160.808104,0.0002196,2]
[366923921,1750576146253,-206.0,0.00022261,2]
[366923922,1750576146277,-206.0,0.00022395,2]
[366923923,1750576146301,-208.0,0.00022455,2]
[366923924,1750576146324,-3886.61438268,0.00022483,2]
[366923925,1750576146347,-150.0,0.0002255,2]
[366923926,1750576146371,-206.0,0.00022577,2]
[366923927,1750576146394,-308.0,0.00022584,2]
[366923928,1750576146417,-300.0,0.00022584,2]
[366923929,1750576146439,-259.424,0.00022585,2]
[366923930,1750576146462,-178.076,0.00022585,2]
[366923931,1750576146486,-3463.46911187,0.00022585,2]
[366923932,1750576151158,-3073.86555792,0.00022585,2]
[366923933,1750576162142,-975.83700361,0.00022585,2]
[366923934,1750576173552,264.0,0.0002449,120]
[366923935,1750576174015,264.0,0.0002448,120]
[366923936,1750576174478,264.0,0.0002447,120]
[366923937,1750576185827,964.60707976,0.00022354,2]
[366923938,1750576185848,912.18997963,0.00022354,2]
[366923971,1750576237198,-336.55625661,0.00021626,2]
[366923973,1750576237209,-336.55625661,0.00021744,2]
[366923975,1750576237218,-336.55625661,0.00022139,2]
[366923977,1750576237228,-336.55625663,0.00022312,2]
[366923979,1750576237237,-3123.20294061,0.00022354,2]
[366923981,1750576237247,-155.49683398,0.0002258,2]
[366923983,1750576237256,-4407.06077578,0.00022585,2]
[366923988,1750576237989,-7163.94657454,0.00022585,2]
[366923989,1750576237999,-14645.34032784,0.00022585,2]
[366923990,1750576238011,-17239.2580455,0.00022586,2]
[366923991,1750576238020,-206.0,0.0002268,2]
[366923992,1750576238031,-168.0,0.0002273,2]
[366923993,1750576238040,-340.84919226,0.00022771,2]
[366923994,1750576238051,-478.0,0.00022854,2]
[366923995,1750576238061,-320.7045613,0.00022856,2]
[366923996,1750576238071,-330.4523338,0.00022856,2]
[366923997,1750576238081,-154.9385345,0.00022856,2]
[366923999,1750576238090,-153.0,0.00022856,2]
[366924001,1750576238099,-153.0,0.00022878,2]
[366924002,1750576238109,-178.0,0.00022935,2]
[366924003,1750576238118,-160.0,0.00022946,2]
[366924004,1750576238128,-160.0,0.00022956,2]
[366924005,1750576238138,-160.0,0.00022956,2]
[366924006,1750576238147,-160.0,0.00022956,2]
[366924007,1750576238156,-178.0,0.00022956,2]
[366924008,1750576238166,-155.49683396,0.00022977,2]
[366924009,1750576238176,-179.42075812,0.0002302,2]
[366924010,1750576238186,-816.2600763,0.00023049,2]
[366924011,1750576238195,-153.0,0.00023145,2]
[366924012,1750576238205,-153.0,0.00023145,2]
[366924013,1750576238214,-478.0,0.00023146,2]
[366924014,1750576238224,-574.6497757,0.00023149,2]
[366924015,1750576238233,-177.3077519,0.00023149,2]
[366924016,1750576238243,-309.7233395,0.00023149,2]
[366924017,1750576238254,-159.1115641,0.00023149,2]
[366924018,1750576238263,-159.1115641,0.00023149,2]
[366924019,1750576238272,-177.307752,0.00023149,2]
[366924020,1750576238283,-574.6497757,0.00023149,2]
[366924021,1750576238292,-361.3035564,0.00023149,2]
[366924022,1750576238303,-159.1115641,0.00023149,2]
[366924023,1750576238314,-1167.8464995,0.00023149,2]
[366924024,1750576238324,-158.9877953,0.00023149,2]
[366924025,1750576238334,-177.3077519,0.00023149,2]
[366924027,1750576238343,-574.6497757,0.00023149,2]
[366924028,1750576238354,-329.0,0.0002316,2]
[366924029,1750576238364,-153.0,0.000232,2]
[366924030,1750576238374,-505.98415779,0.0002325,2]
[366924031,1750576238384,-200.24393792,0.0002325,2]
[366924032,1750576238394,-844.76134459,0.00023251,2]
[366924033,1750576238405,-207.4,0.00023251,2]
[366924034,1750576238415,-155.49683396,0.00023374,2]
[366924035,1750576238424,-154.9521871,0.000235,2]
[366924036,1750576238434,-384.0,0.00023512,2]
[366924037,1750576238444,-160.0,0.00023571,2]
[366924038,1750576238455,-381.0,0.0002359,2]
[366924039,1750576238465,-168.0,0.00023757,2]
[366924040,1750576238475,-155.49683396,0.00023771,2]
[366924041,1750576238485,-403.66728511,0.000239,10]
[366924042,1750576238494,-403.66728486,0.00023969,10]
[366924043,1750576238504,-571.8657369,0.00023971,2]
[366924044,1750576238514,-153.0,0.00023971,2]
[366924045,1750576238523,-153.0,0.00023971,2]
[366924046,1750576238534,-153.0,0.00023971,2]
[366924047,1750576238544,-153.0,0.00023971,2]
[366924048,1750576238555,-153.0,0.00023971,2]